[Event "Titled Tuesday Blitz November 08 Late 2022"]
[White "Nakamura, Hikaru"]
[Black "Svane, Rasmus"]
[WhiteFideId "2016192"]
[BlackFideId "4657101"]
[WhiteElo "2909"]
[BlackElo "2674"]
[Result "1/2-1/2"]
[Round "06"]
[TimeControl "180+1"]
[Date "2022.11.08"]
[WhiteClock "0:00:27"]
[BlackClock "0:00:08"]

1. Nf3 {[%clk 0:03:00]}  d5 {[%clk 0:03:00]} 2. g3 {[%clk 0:03:01]}  Nf6 {[%clk 0:03:00]} 3. Bg2 {[%clk 0:03:01]}  e6 {[%clk 0:03:01]} 4. d3 {[%clk 0:03:02]}  Be7 {[%clk 0:03:00]} 5. Nbd2 {[%clk 0:03:02]}  Nc6 {[%clk 0:03:01]} 6. e4 {[%clk 0:03:03]}  dxe4 {[%clk 0:03:02]} 7. dxe4 {[%clk 0:03:03]}  e5 {[%clk 0:03:03]} 8. O-O {[%clk 0:03:03]}  O-O {[%clk 0:03:03]} 9. c3 {[%clk 0:03:03]}  a5 {[%clk 0:03:02]} 10. Qc2 {[%clk 0:03:03]}  Bc5 {[%clk 0:03:01]} 11. Nc4 {[%clk 0:02:57]}  Qe7 {[%clk 0:03:01]} 12. Re1 {[%clk 0:02:47]}  Ng4 {[%clk 0:02:48]} 13. Re2 {[%clk 0:02:34]}  Be6 {[%clk 0:02:48]} 14. Ncd2 {[%clk 0:02:31]}  Rfd8 {[%clk 0:02:44]} 15. h3 {[%clk 0:02:32]}  Nf6 {[%clk 0:02:43]} 16. Ng5 {[%clk 0:02:23]}  Nh5 {[%clk 0:02:19]} 17. Nf1 {[%clk 0:02:02]}  Bc4 {[%clk 0:02:18]} 18. Rd2 {[%clk 0:02:02]}  Qxg5 {[%clk 0:02:12]} 19. Rd4 {[%clk 0:01:56]}  Nxd4 {[%clk 0:01:53]} 20. cxd4 {[%clk 0:01:56]}  Qg6 {[%clk 0:01:47]} 21. Qxc4 {[%clk 0:01:22]}  Bxd4 {[%clk 0:01:47]} 22. Ne3 {[%clk 0:01:23]}  c6 {[%clk 0:01:06]} 23. Nf5 {[%clk 0:01:22]}  Qe6 {[%clk 0:01:02]} 24. Qe2 {[%clk 0:01:16]}  g6 {[%clk 0:01:00]} 25. h4 {[%clk 0:01:10]}  gxf5 {[%clk 0:00:53]} 26. Qxh5 {[%clk 0:01:10]}  Qg6 {[%clk 0:00:53]} 27. Qxf5 {[%clk 0:01:06]}  Qxf5 {[%clk 0:00:53]} 28. exf5 {[%clk 0:01:07]}  a4 {[%clk 0:00:51]} 29. Rb1 {[%clk 0:01:07]}  f6 {[%clk 0:00:48]} 30. Bf1 {[%clk 0:01:06]}  Kf7 {[%clk 0:00:48]} 31. Bc4+ {[%clk 0:01:06]}  Ke7 {[%clk 0:00:48]} 32. Kf1 {[%clk 0:01:06]}  b5 {[%clk 0:00:45]} 33. Be6 {[%clk 0:01:06]}  c5 {[%clk 0:00:40]} 34. g4 {[%clk 0:00:58]}  Rd6 {[%clk 0:00:33]} 35. Ke2 {[%clk 0:00:58]}  c4 {[%clk 0:00:33]} 36. Bd2 {[%clk 0:00:58]}  Rxe6 {[%clk 0:00:31]} 37. fxe6 {[%clk 0:00:58]}  Kxe6 {[%clk 0:00:32]} 38. Bb4 {[%clk 0:00:58]}  Rg8 {[%clk 0:00:28]} 39. Kf3 {[%clk 0:00:56]}  h5 {[%clk 0:00:22]} 40. gxh5 {[%clk 0:00:56]}  Kf5 {[%clk 0:00:19]} 41. Bd2 {[%clk 0:00:50]}  e4+ {[%clk 0:00:18]} 42. Ke2 {[%clk 0:00:50]}  Rg2 {[%clk 0:00:18]} 43. Be3 {[%clk 0:00:51]}  Bxe3 {[%clk 0:00:15]} 44. Kxe3 {[%clk 0:00:51]}  Rh2 {[%clk 0:00:16]} 45. Rd1 {[%clk 0:00:52]}  Rh3+ {[%clk 0:00:16]} 46. Ke2 {[%clk 0:00:52]}  Rxh4 {[%clk 0:00:17]} 47. Rd5+ {[%clk 0:00:52]}  Kf4 {[%clk 0:00:17]} 48. Rxb5 {[%clk 0:00:53]}  f5 {[%clk 0:00:15]} 49. Rc5 {[%clk 0:00:52]}  Rxh5 {[%clk 0:00:14]} 50. Rxc4 {[%clk 0:00:52]}  a3 {[%clk 0:00:14]} 51. b4 {[%clk 0:00:39]}  Rh1 {[%clk 0:00:13]} 52. Rc3 {[%clk 0:00:38]}  Rb1 {[%clk 0:00:13]} 53. Rxa3 {[%clk 0:00:39]}  Rxb4 {[%clk 0:00:12]} 54. Rb3 {[%clk 0:00:36]}  Rc4 {[%clk 0:00:12]} 55. a3 {[%clk 0:00:35]}  Rc2+ {[%clk 0:00:12]} 56. Kf1 {[%clk 0:00:36]}  Ra2 {[%clk 0:00:13]} 57. Kg2 {[%clk 0:00:35]}  Kg4 {[%clk 0:00:13]} 58. Rg3+ {[%clk 0:00:35]}  Kf4 {[%clk 0:00:13]} 59. Rb3 {[%clk 0:00:35]}  Ra1 {[%clk 0:00:13]} 60. Rc3 {[%clk 0:00:35]}  Rb1 {[%clk 0:00:11]} 61. Rh3 {[%clk 0:00:34]}  Ra1 {[%clk 0:00:10]} 62. Rb3 {[%clk 0:00:34]}  Kg5 {[%clk 0:00:10]} 63. Rg3+ {[%clk 0:00:31]}  Kf6 {[%clk 0:00:10]} 64. Rb3 {[%clk 0:00:30]}  Ra2 {[%clk 0:00:11]} 65. Kg3 {[%clk 0:00:29]}  Kg5 {[%clk 0:00:11]} 66. f4+ {[%clk 0:00:25]}  Kh5 {[%clk 0:00:11]} 67. Rc3 {[%clk 0:00:25]}  Rd2 {[%clk 0:00:09]} 68. Rb3 {[%clk 0:00:23]}  Rc2 {[%clk 0:00:09]} 69. Re3 {[%clk 0:00:23]}  Rb2 {[%clk 0:00:08]} 70. Rc3 {[%clk 0:00:21]}  Ra2 {[%clk 0:00:08]} 71. Kh3 {[%clk 0:00:21]}  Rd2 {[%clk 0:00:06]} 72. Kg3 {[%clk 0:00:21]}  Ra2 {[%clk 0:00:06]} 73. Kh3 {[%clk 0:00:21]}  Ra1 {[%clk 0:00:06]} 74. Rg3 {[%clk 0:00:20]}  Rd1 {[%clk 0:00:06]} 75. Rg5+ {[%clk 0:00:20]}  Kh6 {[%clk 0:00:06]} 76. Rxf5 {[%clk 0:00:21]}  Rd3+ {[%clk 0:00:06]} 77. Kg4 {[%clk 0:00:21]}  Rxa3 {[%clk 0:00:06]} 78. Rf6+ {[%clk 0:00:22]}  Kg7 {[%clk 0:00:07]} 79. Re6 {[%clk 0:00:23]}  e3 {[%clk 0:00:07]} 80. Kg5 {[%clk 0:00:23]}  Kf7 {[%clk 0:00:06]} 81. f5 {[%clk 0:00:24]}  e2 {[%clk 0:00:05]} 82. Rxe2 {[%clk 0:00:23]}  Rg3+ {[%clk 0:00:05]} 83. Kf4 {[%clk 0:00:23]}  Rg1 {[%clk 0:00:06]} 84. Rh2 {[%clk 0:00:24]}  Rf1+ {[%clk 0:00:06]} 85. Kg5 {[%clk 0:00:24]}  Rg1+ {[%clk 0:00:07]} 86. Kf4 {[%clk 0:00:25]}  Rf1+ {[%clk 0:00:08]} 87. Ke3 {[%clk 0:00:25]}  Rxf5 {[%clk 0:00:08]} 88. Rf2 {[%clk 0:00:26]}  Rxf2 {[%clk 0:00:08]} 89. Kxf2 {[%clk 0:00:27]} 1/2-1/2


[Site "https://www.chess.com"]

[Event "Titled Tuesday Blitz November 08 Late 2022"]
[White "Oglaza, Oskar"]
[Black "Danielyan, Vahe"]
[WhiteFideId "1194402"]
[BlackFideId "13304828"]
[WhiteElo "2204"]
[BlackElo "2423"]
[Result "0-1"]
[Round "06"]
[TimeControl "180+1"]
[Date "2022.11.09"]
[WhiteClock "0:00:03"]
[BlackClock "0:01:02"]

1. e4 {[%clk 0:03:00]}  e6 {[%clk 0:03:00]} 2. d4 {[%clk 0:03:00]}  d5 {[%clk 0:03:00]} 3. Nc3 {[%clk 0:03:00]}  dxe4 {[%clk 0:03:00]} 4. Nxe4 {[%clk 0:03:00]}  Nf6 {[%clk 0:03:01]} 5. Bg5 {[%clk 0:02:55]}  Be7 {[%clk 0:03:00]} 6. Bxf6 {[%clk 0:02:42]}  gxf6 {[%clk 0:03:00]} 7. Nf3 {[%clk 0:02:40]}  f5 {[%clk 0:03:00]} 8. Ng3 {[%clk 0:02:35]}  Nd7 {[%clk 0:03:00]} 9. Bc4 {[%clk 0:02:33]}  Nf6 {[%clk 0:03:01]} 10. Qe2 {[%clk 0:02:30]}  Bd7 {[%clk 0:03:01]} 11. Ne5 {[%clk 0:02:25]}  O-O {[%clk 0:02:40]} 12. Nh5 {[%clk 0:02:07]}  Kh8 {[%clk 0:02:37]} 13. O-O-O {[%clk 0:01:48]}  b5 {[%clk 0:02:36]} 14. Bd3 {[%clk 0:01:37]}  Nd5 {[%clk 0:02:35]} 15. g4 {[%clk 0:01:33]}  Bg5+ {[%clk 0:02:33]} 16. Kb1 {[%clk 0:01:33]}  b4 {[%clk 0:02:32]} 17. gxf5 {[%clk 0:01:30]}  exf5 {[%clk 0:02:31]} 18. f4 {[%clk 0:01:20]}  Nxf4 {[%clk 0:02:29]} 19. Nxf4 {[%clk 0:01:20]}  Bxf4 {[%clk 0:02:30]} 20. Qf3 {[%clk 0:01:20]}  Bxe5 {[%clk 0:01:49]} 21. dxe5 {[%clk 0:01:18]}  Qe7 {[%clk 0:01:43]} 22. Bxf5 {[%clk 0:00:52]}  Bxf5 {[%clk 0:01:44]} 23. Qxf5 {[%clk 0:00:52]}  Rae8 {[%clk 0:01:44]} 24. Rhe1 {[%clk 0:00:52]}  Qe6 {[%clk 0:01:39]} 25. Qf2 {[%clk 0:00:46]}  a5 {[%clk 0:01:27]} 26. Qc5 {[%clk 0:00:33]}  Qb6 {[%clk 0:01:23]} 27. Qxb6 {[%clk 0:00:23]}  cxb6 {[%clk 0:01:24]} 28. b3 {[%clk 0:00:23]}  Re6 {[%clk 0:01:24]} 29. Rd6 {[%clk 0:00:20]}  Rfe8 {[%clk 0:01:23]} 30. Rd7 {[%clk 0:00:16]}  Kg8 {[%clk 0:01:20]} 31. Rg1+ {[%clk 0:00:15]}  Kf8 {[%clk 0:01:20]} 32. Rf1 {[%clk 0:00:15]}  R8e7 {[%clk 0:01:21]} 33. Rd8+ {[%clk 0:00:15]}  Kg7 {[%clk 0:01:21]} 34. Rg1+ {[%clk 0:00:15]}  Rg6 {[%clk 0:01:21]} 35. Rxg6+ {[%clk 0:00:16]}  hxg6 {[%clk 0:01:22]} 36. Rd6 {[%clk 0:00:16]}  Rxe5 {[%clk 0:01:17]} 37. Rxb6 {[%clk 0:00:16]}  f5 {[%clk 0:01:18]} 38. Kc1 {[%clk 0:00:17]}  f4 {[%clk 0:01:18]} 39. Kd2 {[%clk 0:00:17]}  f3 {[%clk 0:01:18]} 40. Rb7+ {[%clk 0:00:16]}  Kf6 {[%clk 0:01:07]} 41. Rb8 {[%clk 0:00:16]}  Kg5 {[%clk 0:01:07]} 42. Rf8 {[%clk 0:00:11]}  Rf5 {[%clk 0:01:01]} 43. Rxf5+ {[%clk 0:00:07]}  Kxf5 {[%clk 0:01:02]} 44. Ke3 {[%clk 0:00:03]}  Kg4 {[%clk 0:01:02]} 0-1


[Site "https://www.chess.com"]

[Event "Titled Tuesday Blitz November 08 Late 2022"]
[White "Onslow, Alfie"]
[Black "Burke, Paul"]
[WhiteFideId "436976"]
[BlackFideId "2605767"]
[WhiteElo "2015"]
[BlackElo "1810"]
[Result "1-0"]
[Round "06"]
[TimeControl "180+1"]
[Date "2022.11.09"]
[WhiteClock "0:02:12"]
[BlackClock "0:00:04"]

1. Nf3 {[%clk 0:03:00]}  a6 {[%clk 0:02:59]} 2. e4 {[%clk 0:02:57]}  d6 {[%clk 0:02:59]} 3. d4 {[%clk 0:02:56]}  g6 {[%clk 0:02:59]} 4. Bc4 {[%clk 0:02:54]}  Bg7 {[%clk 0:02:56]} 5. O-O {[%clk 0:02:54]}  e6 {[%clk 0:02:53]} 6. c3 {[%clk 0:02:54]}  h6 {[%clk 0:02:52]} 7. a4 {[%clk 0:02:54]}  Ne7 {[%clk 0:02:52]} 8. Re1 {[%clk 0:02:53]}  b6 {[%clk 0:02:52]} 9. Nbd2 {[%clk 0:02:52]}  Bb7 {[%clk 0:02:52]} 10. Nf1 {[%clk 0:02:51]}  Nd7 {[%clk 0:02:52]} 11. Bb3 {[%clk 0:02:50]}  O-O {[%clk 0:02:51]} 12. h4 {[%clk 0:02:48]}  Nf6 {[%clk 0:02:47]} 13. Ng3 {[%clk 0:02:46]}  d5 {[%clk 0:02:27]} 14. e5 {[%clk 0:02:44]}  Ne4 {[%clk 0:02:26]} 15. Bc2 {[%clk 0:02:45]}  Nxg3 {[%clk 0:02:25]} 16. fxg3 {[%clk 0:02:45]}  Nf5 {[%clk 0:02:25]} 17. Bf4 {[%clk 0:02:44]}  c5 {[%clk 0:02:17]} 18. Qd2 {[%clk 0:02:42]}  Kh7 {[%clk 0:02:16]} 19. Kf2 {[%clk 0:02:31]}  cxd4 {[%clk 0:02:13]} 20. cxd4 {[%clk 0:02:31]}  Rc8 {[%clk 0:02:11]} 21. Rac1 {[%clk 0:02:28]}  a5 {[%clk 0:02:00]} 22. h5 {[%clk 0:02:24]}  Rh8 {[%clk 0:01:47]} 23. g4 {[%clk 0:02:19]}  Nh4 {[%clk 0:01:38]} 24. Rh1 {[%clk 0:02:12]}  Nxf3 {[%clk 0:01:37]} 25. gxf3 {[%clk 0:02:13]}  Kg8 {[%clk 0:01:03]} 26. hxg6 {[%clk 0:02:11]}  fxg6 {[%clk 0:01:03]} 27. Bxg6 {[%clk 0:02:11]}  Rxc1 {[%clk 0:00:46]} 28. Rxc1 {[%clk 0:02:12]}  Qh4+ {[%clk 0:00:18]} 29. Bg3 {[%clk 0:02:13]}  Qh3 {[%clk 0:00:18]} 30. Rc7 {[%clk 0:02:10]}  Ba6 {[%clk 0:00:08]} 31. Bd3 {[%clk 0:02:11]}  Bxd3 {[%clk 0:00:05]} 32. Qxd3 {[%clk 0:02:12]}  Bf8 {[%clk 0:00:04]} 33. Qg6+ {[%clk 0:02:12]} 1-0


[Site "https://www.chess.com"]

[Event "Titled Tuesday Blitz November 08 Late 2022"]
[White "Papayan, Oleg"]
[Black "Silva, Caio Henrique Angelico"]
[WhiteFideId "4193911"]
[BlackFideId "22777210"]
[WhiteElo "2153"]
[BlackElo "1990"]
[Result "1/2-1/2"]
[Round "06"]
[TimeControl "180+1"]
[Date "2022.11.09"]
[WhiteClock "0:00:17"]
[BlackClock "0:00:38"]

1. e4 {[%clk 0:03:00]}  c6 {[%clk 0:02:59]} 2. Nc3 {[%clk 0:02:59]}  d5 {[%clk 0:03:00]} 3. Nf3 {[%clk 0:03:00]}  Bg4 {[%clk 0:02:54]} 4. Qe2 {[%clk 0:02:59]}  e6 {[%clk 0:02:51]} 5. exd5 {[%clk 0:03:00]}  cxd5 {[%clk 0:02:51]} 6. Qb5+ {[%clk 0:03:00]}  Nd7 {[%clk 0:02:50]} 7. Qxb7 {[%clk 0:02:58]}  Bxf3 {[%clk 0:02:49]} 8. gxf3 {[%clk 0:02:58]}  Bc5 {[%clk 0:02:44]} 9. Bb5 {[%clk 0:02:35]}  Nf6 {[%clk 0:02:41]} 10. Na4 {[%clk 0:02:11]}  Rb8 {[%clk 0:02:20]} 11. Qa6 {[%clk 0:01:59]}  O-O {[%clk 0:02:09]} 12. Bxd7 {[%clk 0:01:52]}  Nxd7 {[%clk 0:02:06]} 13. Nxc5 {[%clk 0:01:53]}  Nxc5 {[%clk 0:02:07]} 14. Qxa7 {[%clk 0:01:53]}  Qd6 {[%clk 0:02:02]} 15. d4 {[%clk 0:01:46]}  Nd7 {[%clk 0:01:56]} 16. Qa3 {[%clk 0:01:39]}  Qxa3 {[%clk 0:01:47]} 17. bxa3 {[%clk 0:01:40]}  Nb6 {[%clk 0:01:48]} 18. Bd2 {[%clk 0:01:31]}  Rfc8 {[%clk 0:01:45]} 19. O-O-O {[%clk 0:01:11]}  Ra8 {[%clk 0:01:40]} 20. Bb4 {[%clk 0:01:11]}  Nc4 {[%clk 0:01:39]} 21. Rd3 {[%clk 0:01:11]}  Ra4 {[%clk 0:01:30]} 22. Rb3 {[%clk 0:00:28]}  g6 {[%clk 0:01:25]} 23. Rd1 {[%clk 0:00:28]}  Rca8 {[%clk 0:01:22]} 24. Rdd3 {[%clk 0:00:28]}  Kg7 {[%clk 0:01:18]} 25. Kd1 {[%clk 0:00:25]}  Kf6 {[%clk 0:01:10]} 26. Ke1 {[%clk 0:00:24]}  Kf5 {[%clk 0:01:10]} 27. Kf1 {[%clk 0:00:24]}  h5 {[%clk 0:01:10]} 28. Kg2 {[%clk 0:00:21]}  g5 {[%clk 0:01:08]} 29. h3 {[%clk 0:00:20]}  Rg8 {[%clk 0:01:07]} 30. Kg3 {[%clk 0:00:20]}  f6 {[%clk 0:01:04]} 31. Rb1 {[%clk 0:00:17]}  Rga8 {[%clk 0:00:59]} 32. Rbb3 {[%clk 0:00:17]}  Rg8 {[%clk 0:00:50]} 33. Bc5 {[%clk 0:00:17]}  Rga8 {[%clk 0:00:39]} 34. Bb4 {[%clk 0:00:17]}  Rg8 {[%clk 0:00:38]} 1/2-1/2


[Site "https://www.chess.com"]

[Event "Titled Tuesday Blitz November 08 Late 2022"]
[White "Poliakova, Varvara"]
[Black "Martinez Reyes, Pedro Ramon"]
[WhiteFideId "13518313"]
[BlackFideId "3901807"]
[WhiteElo "2099"]
[BlackElo "2354"]
[Result "1-0"]
[Round "06"]
[TimeControl "180+1"]
[Date "2022.11.09"]
[WhiteClock "0:00:17"]
[BlackClock "0:00:13"]

1. e4 {[%clk 0:02:45]}  c6 {[%clk 0:02:54]} 2. d4 {[%clk 0:02:45]}  Na6 {[%clk 0:02:54]} 3. Nd2 {[%clk 0:02:46]}  Nc7 {[%clk 0:02:54]} 4. Ngf3 {[%clk 0:02:41]}  d5 {[%clk 0:02:53]} 5. e5 {[%clk 0:02:41]}  Bf5 {[%clk 0:02:54]} 6. c3 {[%clk 0:02:39]}  e6 {[%clk 0:02:54]} 7. Be2 {[%clk 0:02:35]}  Ne7 {[%clk 0:02:51]} 8. Nf1 {[%clk 0:02:35]}  Bg4 {[%clk 0:02:51]} 9. Ne3 {[%clk 0:02:33]}  Bxf3 {[%clk 0:02:49]} 10. Bxf3 {[%clk 0:02:33]}  Ng6 {[%clk 0:02:48]} 11. b4 {[%clk 0:02:28]}  Nh4 {[%clk 0:02:45]} 12. Be2 {[%clk 0:02:26]}  a5 {[%clk 0:02:45]} 13. bxa5 {[%clk 0:02:24]}  Rxa5 {[%clk 0:02:43]} 14. Bd3 {[%clk 0:02:18]}  Ba3 {[%clk 0:02:39]} 15. Bxa3 {[%clk 0:02:13]}  Rxa3 {[%clk 0:02:40]} 16. Nc2 {[%clk 0:02:03]}  Rxc3 {[%clk 0:02:30]} 17. Qd2 {[%clk 0:02:04]}  Nxg2+ {[%clk 0:02:28]} 18. Kf1 {[%clk 0:02:01]}  Rxd3 {[%clk 0:02:28]} 19. Qxd3 {[%clk 0:02:00]}  Nf4 {[%clk 0:02:28]} 20. Qg3 {[%clk 0:01:58]}  Ng6 {[%clk 0:02:21]} 21. h4 {[%clk 0:01:55]}  h5 {[%clk 0:02:20]} 22. Kg2 {[%clk 0:01:49]}  Rh6 {[%clk 0:02:00]} 23. Rh3 {[%clk 0:01:40]}  Ne7 {[%clk 0:02:00]} 24. Kh2 {[%clk 0:01:32]}  Nf5 {[%clk 0:02:00]} 25. Qb3 {[%clk 0:01:30]}  Qa8 {[%clk 0:01:37]} 26. Rb1 {[%clk 0:01:26]}  b5 {[%clk 0:01:35]} 27. Rg1 {[%clk 0:01:19]}  Kd7 {[%clk 0:01:25]} 28. Qb2 {[%clk 0:01:16]}  Qa4 {[%clk 0:01:23]} 29. Nb4 {[%clk 0:01:12]}  Na6 {[%clk 0:01:13]} 30. Nxa6 {[%clk 0:01:07]}  Qxa6 {[%clk 0:01:14]} 31. Ra3 {[%clk 0:01:05]}  Qb6 {[%clk 0:01:14]} 32. Qb4 {[%clk 0:00:59]}  Qxd4 {[%clk 0:01:07]} 33. Qxd4 {[%clk 0:00:57]}  Nxd4 {[%clk 0:01:08]} 34. Ra7+ {[%clk 0:00:56]}  Ke8 {[%clk 0:01:04]} 35. Rxg7 {[%clk 0:00:53]}  Rg6 {[%clk 0:01:04]} 36. Rgxf7 {[%clk 0:00:36]}  c5 {[%clk 0:00:55]} 37. Rae7+ {[%clk 0:00:33]}  Kd8 {[%clk 0:00:55]} 38. Rb7 {[%clk 0:00:30]}  Ke8 {[%clk 0:00:54]} 39. Kh3 {[%clk 0:00:28]}  Nc6 {[%clk 0:00:31]} 40. Rh7 {[%clk 0:00:25]}  Rg8 {[%clk 0:00:25]} 41. Rbc7 {[%clk 0:00:26]}  Nd8 {[%clk 0:00:23]} 42. Rce7+ {[%clk 0:00:19]}  Kf8 {[%clk 0:00:23]} 43. Rd7 {[%clk 0:00:18]}  Nc6 {[%clk 0:00:17]} 44. Rd6 {[%clk 0:00:18]}  Ne7 {[%clk 0:00:13]} 45. Rd8# {[%clk 0:00:17]} 1-0


[Site "https://www.chess.com"]

[Event "Titled Tuesday Blitz November 08 Late 2022"]
[White "Putnam, Liam"]
[Black "Makaraci, Tunahan"]
[WhiteFideId "30938279"]
[BlackFideId "6356559"]
[WhiteElo "2082"]
[BlackElo "2161"]
[Result "1-0"]
[Round "06"]
[TimeControl "180+1"]
[Date "2022.11.09"]
[WhiteClock "0:01:51"]
[BlackClock "0:01:34"]

1. Nf3 {[%clk 0:03:00]}  d5 {[%clk 0:02:59]} 2. e3 {[%clk 0:03:00]}  Nf6 {[%clk 0:02:58]} 3. c4 {[%clk 0:03:00]}  e6 {[%clk 0:02:57]} 4. Nc3 {[%clk 0:03:00]}  c5 {[%clk 0:02:57]} 5. cxd5 {[%clk 0:03:00]}  exd5 {[%clk 0:02:58]} 6. d4 {[%clk 0:03:00]}  c4 {[%clk 0:02:56]} 7. e4 {[%clk 0:02:51]}  dxe4 {[%clk 0:02:55]} 8. Ne5 {[%clk 0:02:45]}  Bb4 {[%clk 0:02:47]} 9. Qa4+ {[%clk 0:02:43]}  Nc6 {[%clk 0:02:47]} 10. Nxc6 {[%clk 0:02:42]}  Bxc3+ {[%clk 0:02:47]} 11. bxc3 {[%clk 0:02:43]}  bxc6 {[%clk 0:02:47]} 12. Qxc6+ {[%clk 0:02:41]}  Bd7 {[%clk 0:02:47]} 13. Qxc4 {[%clk 0:02:41]}  O-O {[%clk 0:02:46]} 14. Qb3 {[%clk 0:02:37]}  Rb8 {[%clk 0:02:42]} 15. Qc2 {[%clk 0:02:36]}  Bf5 {[%clk 0:02:41]} 16. Be3 {[%clk 0:02:34]}  Nd5 {[%clk 0:02:37]} 17. Bc4 {[%clk 0:02:31]}  Nxe3 {[%clk 0:02:37]} 18. fxe3 {[%clk 0:02:31]}  Rc8 {[%clk 0:02:33]} 19. Be2 {[%clk 0:02:28]}  Qh4+ {[%clk 0:02:30]} 20. g3 {[%clk 0:02:24]}  Qh3 {[%clk 0:02:29]} 21. Bf1 {[%clk 0:02:23]}  Qh6 {[%clk 0:02:28]} 22. Qd2 {[%clk 0:02:22]}  Bh3 {[%clk 0:02:17]} 23. Be2 {[%clk 0:02:13]}  Bg2 {[%clk 0:02:15]} 24. Rg1 {[%clk 0:02:11]}  Qxh2 {[%clk 0:02:12]} 25. O-O-O {[%clk 0:02:12]}  Rc7 {[%clk 0:01:41]} 26. Bg4 {[%clk 0:02:02]}  Qxg3 {[%clk 0:01:36]} 27. Rxg2 {[%clk 0:02:01]}  Rxc3+ {[%clk 0:01:36]} 28. Kb2 {[%clk 0:01:54]}  Qxe3 {[%clk 0:01:34]} 29. Qxc3 {[%clk 0:01:51]}  Rb8+ {[%clk 0:01:34]} 30. Kc2 {[%clk 0:01:51]} 1-0


[Site "https://www.chess.com"]

[Event "Titled Tuesday Blitz November 08 Late 2022"]
[White "Ramirez, Maria Eugenia"]
[Black "Yang, Kevin"]
[WhiteFideId "3301680"]
[BlackFideId "30908485"]
[WhiteElo "1941"]
[BlackElo "2055"]
[Result "0-1"]
[Round "06"]
[TimeControl "180+1"]
[Date "2022.11.09"]
[WhiteClock "0:00:16"]
[BlackClock "0:00:07"]

1. e4 {[%clk 0:03:00]}  e5 {[%clk 0:02:57]} 2. Nf3 {[%clk 0:02:58]}  Nc6 {[%clk 0:02:56]} 3. Nc3 {[%clk 0:02:59]}  Bb4 {[%clk 0:02:55]} 4. Bb5 {[%clk 0:02:57]}  Nge7 {[%clk 0:02:53]} 5. O-O {[%clk 0:02:55]}  O-O {[%clk 0:02:51]} 6. Nd5 {[%clk 0:02:51]}  Ba5 {[%clk 0:02:48]} 7. c3 {[%clk 0:02:50]}  a6 {[%clk 0:02:32]} 8. Bc4 {[%clk 0:02:45]}  b5 {[%clk 0:02:15]} 9. Bb3 {[%clk 0:02:40]}  d6 {[%clk 0:02:11]} 10. d4 {[%clk 0:02:38]}  Bg4 {[%clk 0:01:58]} 11. Be3 {[%clk 0:02:33]}  Rb8 {[%clk 0:01:46]} 12. h3 {[%clk 0:02:32]}  Bh5 {[%clk 0:01:42]} 13. Bg5 {[%clk 0:02:14]}  Qe8 {[%clk 0:01:08]} 14. Nxe7+ {[%clk 0:02:09]}  Nxe7 {[%clk 0:01:07]} 15. dxe5 {[%clk 0:02:08]}  Bxf3 {[%clk 0:01:06]} 16. Qxf3 {[%clk 0:02:07]}  dxe5 {[%clk 0:01:06]} 17. Rfd1 {[%clk 0:02:03]}  Ng6 {[%clk 0:01:02]} 18. Qg3 {[%clk 0:01:54]}  Kh8 {[%clk 0:00:59]} 19. h4 {[%clk 0:01:53]}  f6 {[%clk 0:00:54]} 20. Be3 {[%clk 0:01:53]}  Bb6 {[%clk 0:00:51]} 21. h5 {[%clk 0:01:50]}  Nf4 {[%clk 0:00:47]} 22. Bxf4 {[%clk 0:01:46]}  exf4 {[%clk 0:00:46]} 23. Qf3 {[%clk 0:01:39]}  f5 {[%clk 0:00:42]} 24. Re1 {[%clk 0:01:29]}  Qe5 {[%clk 0:00:35]} 25. h6 {[%clk 0:01:18]}  gxh6 {[%clk 0:00:27]} 26. Rad1 {[%clk 0:01:15]}  Rbd8 {[%clk 0:00:25]} 27. exf5 {[%clk 0:01:11]}  Qxf5 {[%clk 0:00:21]} 28. Rxd8 {[%clk 0:01:03]}  Rxd8 {[%clk 0:00:21]} 29. Be6 {[%clk 0:01:00]}  Qc5 {[%clk 0:00:16]} 30. Re4 {[%clk 0:00:55]}  Rf8 {[%clk 0:00:13]} 31. Rxf4 {[%clk 0:00:51]}  Qxf2+ {[%clk 0:00:07]} 32. Qxf2 {[%clk 0:00:50]}  Rxf4 {[%clk 0:00:07]} 33. Qxb6 {[%clk 0:00:45]}  cxb6 {[%clk 0:00:08]} 34. Bb3 {[%clk 0:00:27]}  a5 {[%clk 0:00:08]} 35. Bd5 {[%clk 0:00:25]}  b4 {[%clk 0:00:08]} 36. cxb4 {[%clk 0:00:22]}  Rxb4 {[%clk 0:00:07]} 37. b3 {[%clk 0:00:21]}  Rd4 {[%clk 0:00:07]} 38. Bc4 {[%clk 0:00:20]}  Kg7 {[%clk 0:00:05]} 39. a4 {[%clk 0:00:19]}  h5 {[%clk 0:00:05]} 40. Kf2 {[%clk 0:00:20]}  Kf6 {[%clk 0:00:05]} 41. Ke3 {[%clk 0:00:19]}  Ke5 {[%clk 0:00:06]} 42. Kf3 {[%clk 0:00:18]}  h4 {[%clk 0:00:06]} 43. Bg8 {[%clk 0:00:17]}  h6 {[%clk 0:00:06]} 44. Bf7 {[%clk 0:00:16]}  Rf4+ {[%clk 0:00:06]} 45. Ke3 {[%clk 0:00:16]}  Rxf7 {[%clk 0:00:07]} 0-1


[Site "https://www.chess.com"]

[Event "Titled Tuesday Blitz November 08 Late 2022"]
[White "Rangel, Daniel"]
[Black "Postnikov, Daniil"]
[WhiteFideId "2124475"]
[BlackFideId "4166329"]
[WhiteElo "2225"]
[BlackElo "2261"]
[Result "0-1"]
[Round "06"]
[TimeControl "180+1"]
[Date "2022.11.09"]
[WhiteClock "0:00:04"]
[BlackClock "0:00:35"]

1. c4 {[%clk 0:03:00]}  c5 {[%clk 0:02:56]} 2. g3 {[%clk 0:03:01]}  Nc6 {[%clk 0:02:56]} 3. Bg2 {[%clk 0:03:01]}  g6 {[%clk 0:02:57]} 4. Nc3 {[%clk 0:03:01]}  Bg7 {[%clk 0:02:58]} 5. e3 {[%clk 0:03:01]}  e5 {[%clk 0:02:58]} 6. Nge2 {[%clk 0:03:02]}  Nge7 {[%clk 0:02:58]} 7. O-O {[%clk 0:03:02]}  O-O {[%clk 0:02:58]} 8. b3 {[%clk 0:03:02]}  d6 {[%clk 0:02:57]} 9. d3 {[%clk 0:03:01]}  f5 {[%clk 0:02:55]} 10. Bb2 {[%clk 0:03:00]}  Kh8 {[%clk 0:02:55]} 11. Nd5 {[%clk 0:02:59]}  Nxd5 {[%clk 0:02:53]} 12. cxd5 {[%clk 0:02:58]}  Ne7 {[%clk 0:02:53]} 13. Qc2 {[%clk 0:02:55]}  g5 {[%clk 0:02:43]} 14. f4 {[%clk 0:02:46]}  Ng6 {[%clk 0:02:42]} 15. Rae1 {[%clk 0:02:38]}  b6 {[%clk 0:02:15]} 16. e4 {[%clk 0:01:53]}  gxf4 {[%clk 0:02:07]} 17. gxf4 {[%clk 0:01:52]}  Qh4 {[%clk 0:02:06]} 18. fxe5 {[%clk 0:01:35]}  dxe5 {[%clk 0:01:55]} 19. exf5 {[%clk 0:01:29]}  Bxf5 {[%clk 0:01:55]} 20. Ng3 {[%clk 0:01:27]}  Bh3 {[%clk 0:01:48]} 21. Bxh3 {[%clk 0:01:07]}  Qxh3 {[%clk 0:01:47]} 22. Rxf8+ {[%clk 0:00:34]}  Rxf8 {[%clk 0:01:46]} 23. Rf1 {[%clk 0:00:34]}  Rxf1+ {[%clk 0:01:22]} 24. Nxf1 {[%clk 0:00:35]}  Qf3 {[%clk 0:01:23]} 25. Qg2 {[%clk 0:00:25]}  Qxd3 {[%clk 0:01:08]} 26. Qd2 {[%clk 0:00:06]}  Qf3 {[%clk 0:00:55]} 27. Qg2 {[%clk 0:00:05]}  Qxg2+ {[%clk 0:00:54]} 28. Kxg2 {[%clk 0:00:05]}  Nf4+ {[%clk 0:00:55]} 29. Kf3 {[%clk 0:00:06]}  Nxd5 {[%clk 0:00:54]} 30. Ke4 {[%clk 0:00:06]}  Nb4 {[%clk 0:00:46]} 31. a3 {[%clk 0:00:06]}  Nc6 {[%clk 0:00:47]} 32. Kd5 {[%clk 0:00:06]}  Nd4 {[%clk 0:00:46]} 33. Ne3 {[%clk 0:00:06]}  Nxb3 {[%clk 0:00:45]} 34. Nc4 {[%clk 0:00:06]}  e4 {[%clk 0:00:40]} 35. Bxg7+ {[%clk 0:00:03]}  Kxg7 {[%clk 0:00:41]} 36. Kxe4 {[%clk 0:00:04]}  Kf6 {[%clk 0:00:40]} 37. Kd5 {[%clk 0:00:04]}  Kf5 {[%clk 0:00:37]} 38. Kc6 {[%clk 0:00:04]}  Kg4 {[%clk 0:00:35]} 39. Kb7 {[%clk 0:00:04]}  Na5+ {[%clk 0:00:35]} 0-1


[Site "https://www.chess.com"]